Cogmind - Beta 10.2 @@@ ROGUE MODE // 2021.05.09 @ 10:56:17 Player: K.Ioz Result: Self-destructed Performance ------------- Evolutions (1) 500 Regions Visited (2) 400 Robots Destroyed (8) 40 Value Destroyed (329) 329 Prototype IDs (0) 0 Alien Tech Used (0) 0 Bonus (200) 200 TOTAL SCORE: 1469 Bonus ------- Pacifist 200 Cogmind --------- Core Integrity 376/400 Matter 300/300 Energy 250/250 System Corruption 1% Temperature Cool (0) Movement Walking (120) Location -9/Materials Parts ------- > --- POWER (1) -------- Ion Engine > --- PROPULSION (2) --- Aluminum Leg Aluminum Leg > --- UTILITY (4) ------ Improved Heat Sink Small Storage Unit Sensor Array > --- WEAPON (2) ------- (None) > --- INVENTORY (6) ---- Ion Engine Wheel Compact Wheel Small Laser Assault Cannon Grenade Launcher Peak State ------------ > --- POWER ------------ Ion Engine > --- PROPULSION ------- Aluminum Leg Aluminum Leg > --- UTILITY ---------- Improved Heat Sink Small Storage Unit Sensor Array > --- WEAPON ----------- Medium Laser Assault Rifle > --- INVENTORY -------- Ion Engine Wheel Compact Wheel Small Laser Beam Rifle Grenade Launcher [Rating: 10] Favorites ----------- Power Ion Engine Engine Ion Engine Propulsion Aluminum Leg Leg Aluminum Leg Utility Small Storage Unit Device Sensor Array Storage Small Storage Unit Weapon Assault Rifle Energy Gun Medium Laser Ballistic Gun Assault Rifle Build | -11 -10 -9 ------- Run | Scr Mat Mat Slots Evolved 2 | . . 2 Power . | . . . Propulsion . | . . . Utility 2 | . . 2 Weapon . | . . . Parts Attached 9 | 7 1 1 Power 1 | 1 . . Engine 1 | 1 . . Core . | . . . Reactor . | . . . Propulsion 2 | 2 . . Treads . | . . . Leg 2 | 2 . . Wheel . | . . . Hover . | . . . Flight . | . . . Utility 3 | 1 1 1 Device 2 | . 1 1 Storage 1 | 1 . . Processor . | . . . Hackware . | . . . Protection . | . . . Artifact . | . . . Weapon 3 | 3 . . Energy Gun 2 | 2 . . Energy Cannon . | . . . Ballistic Gun 1 | 1 . . Ballistic Cannon . | . . . Launcher . | . . . Special Weapon . | . . . Impact Weapon . | . . . Slashing Weapon . | . . . Piercing Weapon . | . . . Special Melee Weapon . | . . . Unidentified Prototypes . | . . . Parts Lost 2 | . . 2 Power . | . . . Propulsion . | . . . Utility . | . . . Weapon 2 | . . 2 Highest Loss Streak 1 | . . 1 Average Slot Usage (%) 81 | . 90 79 Engine 11 | . 14 11 Leg 23 | . 28 22 Device 18 | . 5 21 Storage 11 | . 14 11 Energy Gun 6 | . 14 4 Ballistic Gun 9 | . 14 9 Naked Turns . | . . . Heaviest Build 15 | 13 14 15 Greatest Support 20 | 20 20 20 Greatest Overweight (x) . | . . . Average Overweight (x) . | . . . Largest Inventory Capacity 6 | 6 6 6 Average Capacity 5 | 5 6 6 Most Carried 6 | 5 6 6 Average Carried 5 | 2 5 5 Final Capacity 6 | 6 6 6 Final Carried 6 | 4 6 6 Class Distribution -------------------- 100% | Mutant Dominant Class ---------------- Mutant | -10/Materials Mutant | -9/Materials Resources | -11 -10 -9 ----------- Run | Scr Mat Mat Matter Collected 359 | 222 . 137 Remotely . | . . . Salvage Created 416 | . . 416 Parts 28 | . . 28 Haulers Intercepted . | . . . Recyclers Shooed . | . . . Parts Field Recycled . | . . . Retrieved Matter . | . . . Parts Self-Destructed . | . . . Prevented . | . . . Kills | -11 -10 -9 ------- Run | Scr Mat Mat Combat Hostiles Destroyed 8 | . . 8 Guns 8 | . . 8 Classes Destroyed 3 | . . 3 Grunt 3 | . . 3 Duelist 1 | . . 1 Sentry 4 | . . 4 Best Kill Streak 3 | . . 3 Combat Bots Only 3 | . . 3 Max Kills in Single Turn 1 | . . 1 Gunslinging . | . . . Exploded . | . . . Melee . | . . . Uniques/NPCs Destroyed . | . . . Combat | -11 -10 -9 -------- Run | Scr Mat Mat Damage Taken 314 | . . 314 Core 24 | . . 24 Absorbed by Shields . | . . . Core Remaining (%) 100 | 100 100 . Volleys Fired 24 | . . 24 Largest 2 | . . 2 Hottest 70 | . . 70 Shots Fired 38 | . . 38 Gun 38 | . . 38 Cannon . | . . . Launcher . | . . . Special . | . . . Kinetic 24 | . . 24 Thermal 14 | . . 14 Explosive . | . . . Electromagnetic . | . . . Robot Hit Streak 9 | . . 9 Robot Miss Streak 2 | . . 2 Penetration Max . | . . . Secondary Targets . | . . . Shots Hit Robots 30 | . . 30 Core Hits 16 | . . 16 Critical Hits . | . . . Critical Kills . | . . . Critical Parts Destroyed . | . . . Melee Attacks . | . . . Impact . | . . . Slashing . | . . . Piercing . | . . . Sneak Attacks . | . . . Combat Hostiles . | . . . Follow-up Attacks . | . . . Damage Inflicted 374 | . . 374 Guns 363 | . . 363 Cannons . | . . . Explosions . | . . . Melee . | . . . Ramming 11 | . . 11 Kinetic 249 | . . 249 Thermal 114 | . . 114 Explosive . | . . . Electromagnetic . | . . . Impact . | . . . Slashing . | . . . Piercing . | . . . Highest Corruption 1 | . . 1 Average Corruption 1 | . . 1 Corruption Purged . | . . . Effects 1 | . . 1 Data Loss (minor) 1 | . . 1 Overload Shots . | . . . Overflow Damage . | . . . Projectiles . | . . . Explosions . | . . . Melee . | . . . Knockbacks 1 | . . 1 Impact 1 | . . 1 Kinetic . | . . . Secondary . | . . . Self-Inflicted Damage . | . . . Shots . | . . . Rammed . | . . . Targets Rammed 1 | . . 1 Kicked 1 | . . 1 Crushed . | . . . Highest Temperature . | . . . Average Temperature . | . . . Received Heat Transfer 114 | . . 114 Siege Activations . | . . . Robots Corrupted . | . . . Combat Hostiles . | . . . Parts Fried . | . . . Impact Corruptions . | . . . Robots Melted . | . . . Combat Hostiles . | . . . Parts Melted . | . . . Heat Transferred 333 | . . 333 Parts Sabotaged . | . . . Parts Stolen . | . . . Parts Stripped . | . . . Power Chain Reactions . | . . . Missiles Intercepted . | . . . Alert | -11 -10 -9 ------- Run | Scr Mat Mat Peak Influence 260 | . . 260 Initial . | . . . Average 75 | . . 102 Maximum Alert Level 1 | . . 1 Low Security (%) 81 | 100 100 75 Level 1 18 | . . 25 Level 2 . | . . . Level 3 . | . . . Level 4 . | . . . Level 5 . | . . . High Security . | . . . Max Security . | . . . Squads Dispatched 4 | . 1 3 Investigation 1 | . . 1 Extermination . | . . . Reinforcement 3 | . 1 2 Assault . | . . . Garrison . | . . . Intercept . | . . . Construction Impeded . | . . . Haulers Reinforced . | . . . Stealth | -11 -10 -9 --------- Run | Scr Mat Mat Distress Signals 3 | . 3 . Communications Jammed . | . . . Distress Signals . | . . . Times Spotted 16 | . . 16 Peak Tracking Total 5 | . . 5 Tactical Retreats 1 | . . 1 Traps | -11 -10 -9 ------- Run | Scr Mat Mat Traps Triggered 1 | . . 1 Indirectly . | . . . Trap Hack Attempts . | . . . Triggered . | . . . Disarmed . | . . . Reprogrammed . | . . . Reused . | . . . Traps Extracted . | . . . Installed . | . . . Triggered . | . . . Machines | -11 -10 -9 ---------- Run | Scr Mat Mat Machines Disabled . | . . . Max in Single Turn . | . . . Machines Sabotaged . | . . . Garrisons Compromised . | . . . Overloaded Fab Kills . | . . . Fab Network Shutdowns . | . . . Hacking | -11 -10 -9 --------- Run | Scr Mat Mat Machines Accessed 3 | . 1 2 Terminals 3 | . 1 2 Fabricators . | . . . Repair Stations . | . . . Recycling Units . | . . . Scanalyzers . | . . . Garrison Access . | . . . Total Hacks 7 | . 3 4 Successful 2 | . . 2 Failed 5 | . 3 2 Catastrophic 2 | . 1 1 Database Lockouts . | . . . Manual 2 | . . 2 Terminals 7 | . 3 4 Fabricators . | . . . Repair Stations . | . . . Recycling Units . | . . . Scanalyzers . | . . . Garrison Access . | . . . Terminal Hacks 2 | . . 2 Emergency Access Points 1 | . . 1 Locate Traps 1 | . . 1 Fabricator Hacks . | . . . Repair Station Hacks . | . . . Recycling Unit Hacks . | . . . Scanalyzer . | . . . Garrison Access Hacks . | . . . Unauthorized Hacks . | . . . Terminals . | . . . Fabricators . | . . . Repair Stations . | . . . Recycling Units . | . . . Scanalyzers . | . . . Garrison Access . | . . . Data Cores Recovered . | . . . Used . | . . . Hacking Detections 3 | . 1 2 Full Trace Events 1 | . . 1 Feedback Events . | . . . Feedback Blocked . | . . . Robot Schematics Acquired . | . . . Robots Built . | . . . Matter . | . . . Time . | . . . Total Robot Build Rating . | . . . Part Schematics Acquired . | . . . Parts Built . | . . . Matter . | . . . Time . | . . . Total Part Build Rating . | . . . Parts Repaired . | . . . Time . | . . . Parts Recycled . | . . . Recycled Matter . | . . . Retrieved Matter . | . . . Retrieved Components . | . . . Parts Scanalyzed . | . . . Part Schematics Acquired . | . . . Parts Damaged . | . . . Bothacking | -11 -10 -9 ------------ Run | Scr Mat Mat Used RIF Installer . | . . . Robots Hacked . | . . . Non-combat . | . . . Combat . | . . . Robot Hacks Applied . | . . . Relay Couplers Released . | . . . Robots Rewired . | . . . Allies Hacked . | . . . Hacks Repelled . | . . . Allies | -11 -10 -9 -------- Run | Scr Mat Mat Total Allies . | . . . Largest Group . | . . . Highest-Rated Group . | . . . Highest-Rated Ally . | . . . Total Orders . | . . . Ally Attacks . | . . . Total Damage . | . . . Kills . | . . . Allies Corrupted . | . . . Allies Melted . | . . . Intel | -11 -10 -9 ------- Run | Scr Mat Mat Robot Analysis Total . | . . . Derelict Logs Recovered . | . . . Drone Launches . | . . . Drone Recoveries . | . . . Exploration | -11 -10 -9 ------------- Run | Scr Mat Mat Turns Passed 759 | 77 122 560 Spaces Moved 549 | 57 99 393 Core 8 | 8 . . Treads . | . . . Legs 541 | 49 99 393 Wheels . | . . . Hover . | . . . Flight . | . . . Fastest Speed 50 | 50 120 120 Average Speed 118 | 110 120 120 Slowest Speed 120 | 120 120 120 Overloaded Moves . | . . . Propulsion Burnouts . | . . . Robots Hopped . | . . . Cave-ins Triggered . | . . . Exploration Rate (%) 22 | 4 19 44 Regions Visited 2 Branch Regions . Pre-discovered Areas . | . . . Known Exits Taken . | . . . Unknown Exits Taken 2 | 1 1 . Scrap Searched . | . . . Spaces Dug . | . . . Terrain Destroyed . | . . . Melee . | . . . Projectile . | . . . AOE . | . . . Terrain Rammed . | . . . Walls Destroyed . | . . . Machines Disabled . | . . . Actions | -11 -10 -9 --------- Run | Scr Mat Mat Total 612 | 68 101 443 Wait 20 | . . 20 Move 547 | 56 98 393 Hop . | . . . Pick Up 9 | 5 2 2 Fast Attach 7 | 5 1 1 Attach 1 | 1 . . Detach . | . . . Swap 1 | 1 . . Drop 2 | . . 2 Fire 24 | . . 24 Melee . | . . . Ram . | . . . Kick 1 | . . 1 Crush . | . . . Escape Stasis . | . . . Rewire . | . . . Trap . | . . . Miscellaneous . | . . . Route ------- -11/Scrapyard -10/Materials -9/Materials (discovered 2 exits: [*Min x2]) History --------- Turn | Location | Event 4 | -11/Scrapyard | Discovered new exit (range 16) 78 | -11/Scrapyard | Entered Materials 177 | -10/Materials | Discovered new exit (range 10) 200 | -10/Materials | Entered another Materials area 200 | -9/Materials | Evolved 2 slots: Utility x2 309 | -9/Materials | Build established: Mutant 365 | -9/Materials | Discovered new exit (range 15) 470 | -9/Materials | Discovered new exit (range 9) 760 | -9/Materials | Self-destructed Last Messages --------------- 00605_ R-06 Scavenger collects Lgt. Treads. 00606_ R-06 Scavenger collects Lgt. Armor Plating. 00609_ R-06 Scavenger collects Imp. Ion Engine. 00628_ Triggered Shock Trap. 00628_ The floor emits a surge of raw power. 00628_ System corrupted (+1). 00653_ K-01 Serf collects debris. 00667_ Assault Rifle destroyed. 00698_ O-16 Technician: "IFF HANDSHAKE FAILED. SECURING TERMINAL." 00706_ ALERT: Hostiles spotted, dispatching reinforcements to Terminal M002. 00707_ Kicked R-06 Scavenger out of the way. 00707_ R-06 Scavenger knocked back. 00744_ O-16 Technician: "IFF HANDSHAKE FAILED. SECURING TERMINAL." 00746_ System corrupted: Component data lost. 00756_ ALERT: Hostiles spotted, dispatching reinforcements to Terminal M001. 00756_ Connecting with Terminal... 00756_ ALERT: Suspicious activity at Terminal M011. Dispatching Investigation squad. Map ----- +----------------------------------------------------+ | | | | | | | | | | | | | | | | | | | | | ??????????????????##################?????????????? | | ??????????????????# #?????????????? | | ??????????????????# #?????????????? | | ??????????????????# #?????????????? | | ??????????????????# #?????????????? | | #####?????????????# #?????????????? | | ]]!!#?????????????# #?????????????? | | ]!!#?????????????# #?????????????? | | #?????????????# #?????????????? | | #?????????????# #?????????????? | | #??????????????########+########?????????????? | | #################### #?????????????????? | | #?????????????????? | | ############# ########??????????? | | #???????????# T ?????????? | | #####???????????# @ #########?????????? | | ????????????????# #?????????????????? | | ????????????????####+### #?????????????????? | | ?????????????????? ?### ###?????????????????? | | ????????????????# #??# #???????????????????? | | ????????????????# ####??# #???????????????????? | | ????????????????##???????# #########???????????? | | ????????????????????????## ## #???????????? | | ????????????????????????# g # """ #???????????? | | ????????????????????????# # "R" +???????????? | | ????????????????????????# + " " #???????????? | | ????????????????????????# # #???????????? | | ????????????????????????# % # #???????????? | | ????????????????????????### ###+######???????????? | | ??????????????????????????# #?# #????????????????? | | ?????????????????????????##%### #????????????????? | | ?????????????????????????# +????????????????? | | ?????????????????????????# #????????????????? | | ?????????????????????????# ##+#########????????? | | ?????????????????????????# ## #????????? | | ????????????????????????## % ## #????????? | | ????????????????????????# # #????????? | | ????????????????????????# # #????????? | | ????????????????????????# + #????????? | | ????????????????????????# # #????????? | +----------------------------------------------------+ Best States ------------- Heat Dissipation 42 Energy Generation 10 Energy Capacity 250 Matter Stores 300 Matter Capacity 300 Sight Range 16 Robot Scan Range 10 Terrain Scan Density 10 Evasion (%) 40 Item Schematics ----------------- None Robot Schematics ------------------ None Fabricated ------------ Nothing Alien Tech Used ----------------- None Achievements -------------- None Challenges ------------ None Game ------ Seed AutogunLegNukerbomber Manual? 0 Play Time 00:13:38 Cumulative 170.9 hours Start 2021.04.03 @ 15:17:50 End 2021.05.09 @ 10:56:17 Sessions 9 Manual Loads 0 Difficulty Rogue Special Mode None Game No. 117 Rogue 85 Adventurer 0 Explorer 32 Win Type - Total 4 Types 4/0/0/0/0/0/0/0/0 Lore% 61 Gallery% 67 Achievement% 58 Wizard Run 0 Options --------- ASCII 1 Keyboard 1 Movement Vi Keybinds 0 Fullscreen 0 Font 12/Tallcaps Map View 76x50 Tactical HUD 1 Map Filters NONE Filters LOW_CONTRAST(47,30,31) Steam X RUN: d1df4fe1-6c58-4725-be7c-6abc26a81173